bitfinex/quotes_SOLUSD_20240906
["timestamp","ask_amount","ask_price","bid_price","bid_amount"]
[1725655094303,2.01139582,124.35,124.23,43.9438]
[1725655094494,8.0451,124.3,124.23,43.9438]
[1725655094701,8.0451,124.3,124.14,10.0]
[1725655094702,2.01157423,124.29,124.14,15.377]
[1725655094882,22.01157423,124.29,124.18,20.1316]
[1725655095090,8.0489,124.24,124.18,20.1316]
[1725655095289,22.01157423,124.29,124.16,8.054]
[1725655095290,8.0498,124.23,124.16,8.054]
[1725655095494,8.0489,124.24,124.17,8.0534]
[1725655095704,22.01247214,124.29,124.14,55.6539]
[1725655095893,22.01247214,124.29,124.19,28.1815]
[1725655095894,8.0481,124.26,124.19,28.1815]
[1725655096093,8.0484,124.25,124.19,28.1816]
[1725655097198,8.0484,124.25,124.19,20.1296]
[1725655097418,22.1293862,124.28,124.17,8.0532]
[1725655097624,22.1293862,124.28,124.16,20.1343]
[1725655097625,20.0,124.27,124.18,8.0526]
[1725655097818,8.0481,124.26,124.19,8.052]
[1725655098025,8.0497,124.23,124.16,8.054]
[1725655098210,10.06295241,124.22,124.15,8.0546]
[1725655098414,30.06295241,124.22,124.15,8.0546]
[1725655098618,8.0502,124.22,124.15,8.0546]
[1725655099005,8.0496,124.23,124.14,35.515]
[1725655099203,8.0507,124.22,124.14,35.515]
[1725655099524,2.01277997,124.23,124.14,35.515]
[1725655099821,2.01277997,124.23,124.15,53.0546]
[1725655100028,2.01277997,124.23,124.16,8.0537]
[1725655100227,8.0502,124.22,124.16,8.0537]
[1725655100525,22.01289076,124.25,124.16,8.0537]
[1725655100526,8.0497,124.23,124.17,45.0]
[1725655100836,10.06307926,124.22,124.15,8.0547]
[1725655101024,8.0504,124.22,124.16,53.0539]
[1725655102017,6.0185,124.21,124.09,5.0]
[1725655102315,22.14393064,124.2,124.09,5.0]
[1725655102520,8.0548,124.15,124.09,13.0584]
[1725655103229,22.146637,124.18,124.09,5.0]
[1725655103524,8.0558,124.14,124.09,5.0]
[1725655103744,20.1364,124.16,124.09,5.0]
[1725655104029,8.0569,124.12,124.09,5.0]
[1725655104321,8.0555,124.14,124.09,5.0]
[1725655105035,8.0528,124.18,124.09,25.1456]
[1725655105206,139.8516,124.2,124.09,5.0]
[1725655105405,8.0532,124.18,124.12,20.1413]
[1725655105710,2.01351585,124.2,124.12,28.1974]
[1725655105911,8.0535,124.17,124.12,20.1413]
[1725655106431,2.01404499,124.2,124.1,8.0575]
[1725655106600,2.01404499,124.2,124.12,8.0562]
[1725655106601,8.0528,124.18,124.12,8.0562]
[1725655107314,8.0535,124.17,124.11,28.2001]
[1725655107534,8.0529,124.18,124.12,8.0567]
[1725655108428,28.16036517,124.21,124.11,20.1428]
[1725655108637,8.33604215,124.21,124.16,8.0539]
[1725655108927,8.33604215,124.21,124.09,5.0]
[1725655108928,8.0526,124.19,124.13,8.056]
[1725655109125,8.0517,124.2,124.14,8.0554]
[1725655109503,16.38694215,124.21,124.15,8.0546]
[1725655109709,2.01328093,124.2,124.15,8.0546]
[1725655110217,10.06478093,124.2,124.14,28.1935]
[1725655111314,8.0515,124.2,124.14,28.1935]
[1725655111633,8.33604215,124.21,124.14,28.193]
[1725655112118,10.06541326,124.2,124.14,28.193]
[1725655112323,8.0523,124.19,124.13,8.0559]
[1725655112819,8.33604215,124.21,124.13,20.1394]
[1725655113021,8.33604215,124.21,124.1,35.63538984]
[1725655113203,131.8,124.25,124.13,35.63538984]
[1725655113411,266.6548,124.3,124.18,35.63538984]
[1725655113607,266.6548,124.3,124.21,20.1261]
[1725655113608,16.9944005,124.3,124.21,20.1261]
[1725655113817,8.0451,124.3,124.24,8.0487]
[1725655114014,8.0444,124.31,124.25,8.0481]
[1725655114214,131.8,124.35,124.24,35.63538984]
[1725655114430,131.8,124.35,124.23,23.1766]
[1725655114431,2.34702892,124.35,124.31,8.0441]
[1725655114629,2.34702892,124.35,124.3,8.0449]
[1725655114815,2.34702892,124.35,124.29,28.1588]
[1725655115015,2.34702892,124.35,124.25,20.1192]
[1725655115238,8.0425,124.34,124.27,8.0467]
[1725655115405,8.0432,124.33,124.26,8.0476]
[1725655115605,8.0432,124.33,124.27,8.0468]
[1725655115911,8.62443496,124.36,124.27,8.0468]
[1725655116105,8.62443496,124.36,124.25,20.1192]
[1725655116319,8.0431,124.33,124.26,8.0476]
[1725655116535,8.0444,124.31,124.25,20.1192]
[1725655116837,8.0444,124.31,124.24,8.0488]
[1725655116838,20.0,124.3,124.24,8.0488]
[1725655117038,131.8,124.34,124.24,20.1209]
[1725655117208,8.0432,124.33,124.27,8.0468]
[1725655117411,2.39107409,124.36,124.26,20.1179]
[1725655117638,2.01096468,124.37,124.28,20.1146]
[1725655117807,8.0423,124.35,124.28,28.1603]
[1725655118019,10.05325133,124.34,124.28,28.1603]
[1725655118227,8.0424,124.34,124.28,20.1146]
[1725655118616,2.01109666,124.37,124.28,20.1146]
[1725655118819,8.0432,124.33,124.28,20.1146]
[1725655119135,8.0432,124.33,124.27,8.0466]
[1725655119506,2.01115755,124.32,124.23,16.6618]
[1725655119717,151.9038,124.36,124.23,16.6618]
[1725655119718,2.01171271,124.31,124.23,16.6618]
[1725655120141,8.047,124.27,124.23,16.6618]
[1725655120322,2.01171271,124.31,124.23,16.6618]
[1725655120527,8.0457,124.29,124.23,24.7113]
[1725655120727,8.0445,124.31,124.24,28.1699]
[1725655120925,8.0452,124.3,124.23,36.7848]
[1725655121121,8.046,124.29,124.23,44.8339]
[1725655121842,8.0452,124.3,124.23,44.8339]
[1725655122227,8.0461,124.29,124.23,44.8339]
[1725655122547,20.0,124.32,124.25,20.1201]
[1725655122849,22.32587309,124.32,124.25,20.1201]
[1725655123366,22.32587309,124.32,124.25,28.1681]
[1725655123721,2.32587309,124.32,124.27,8.0469]
[1725655123936,131.8,124.33,124.28,8.0462]
[1725655124152,46.5511,124.39,124.27,20.1168]
[1725655124153,8.0419,124.35,124.29,8.0456]
[1725655124331,8.0425,124.34,124.28,8.0461]
[1725655125029,8.0431,124.33,124.27,28.1636]
[1725655125642,8.0438,124.32,124.27,20.1168]
[1725655126154,8.0431,124.33,124.27,28.1635]
[1725655126847,8.0391,124.4,124.33,8.0426]
[1725655127145,8.0391,124.4,124.28,60.9215]
[1725655127146,8.0394,124.39,124.32,28.1522]
[1725655127334,8.0387,124.4,124.33,53.0429]
[1725655127824,8.0387,124.4,124.36,8.041]
[1725655127825,2.35612126,124.4,124.36,8.041]
[1725655128330,8.0379,124.41,124.35,8.0417]
[1725655129351,20.0904,124.44,124.34,20.1056]
[1725655129538,8.0399,124.38,124.33,45.0]
[1725655129724,2.01004035,124.43,124.33,45.0]
[1725655129725,8.0394,124.39,124.33,8.043]
[1725655129924,8.0405,124.37,124.31,20.1101]
[1725655130142,8.04,124.38,124.32,45.0]
[1725655130326,8.04,124.38,124.32,53.0432]
[1725655130623,8.0445,124.31,124.28,15.9215]
[1725655130864,8.0452,124.3,124.25,20.1196]
[1725655131060,28.44147646,124.37,124.25,28.1677]
[1725655131350,20.1066,124.34,124.25,20.1196]
[1725655131561,8.0444,124.31,124.25,20.1196]
[1725655131724,8.0437,124.32,124.25,20.1196]
[1725655132422,28.73135012,124.37,124.24,40.2424]
[1725655132624,10.34075012,124.37,124.31,8.0443]
[1725655132841,10.34075012,124.37,124.29,20.1131]
[1725655132842,8.0413,124.36,124.3,8.0445]
[1725655133722,8.0413,124.36,124.31,8.0443]
[1725655133948,6.2093,124.41,124.31,20.11]
[1725655134144,20.0,124.4,124.33,8.043]
[1725655134345,8.04,124.38,124.32,8.0435]
[1725655135258,8.0408,124.37,124.31,28.1542]
[1725655136067,8.0408,124.37,124.29,15.5744]
[1725655136068,8.0432,124.33,124.29,15.5744]
[1725655136233,20.0987,124.39,124.23,35.63538984]
[1725655136234,10.05532421,124.32,124.26,8.0474]
[1725655136530,2.01129597,124.31,124.25,20.12]
[1725655136739,8.0474,124.27,124.23,15.1415]
[1725655137144,8.0474,124.27,124.21,8.0507]
[1725655137352,20.1118,124.31,124.22,8.05]
[1725655137353,8.0465,124.28,124.22,8.05]
[1725655137847,8.0458,124.29,124.23,8.0492]
[1725655138054,8.0458,124.29,124.21,20.1267]
[1725655138055,8.0465,124.28,124.22,8.05]
[1725655138557,22.12376599,124.31,124.21,20.1267]
[1725655138859,20.1118,124.31,124.22,45.0]
[1725655139162,20.1118,124.31,124.23,8.049]
[1725655139163,8.0459,124.29,124.23,8.049]
[1725655140235,8.0454,124.3,124.24,53.0487]
[1725655140437,8.0438,124.32,124.27,8.0469]
[1725655140635,2.32704766,124.33,124.25,20.1202]
[1725655140636,8.0444,124.31,124.26,8.0475]
[1725655140847,8.0444,124.31,124.25,28.1683]
[1725655141431,2.01164597,124.3,124.19,15.1415]
[1725655141652,8.0461,124.29,124.23,8.0493]
[1725655142039,131.8,124.32,124.23,20.1225]
[1725655142246,131.8,124.32,124.26,8.0475]
[1725655142558,20.1025,124.37,124.21,100.08748984]
[1725655142739,10.38329784,124.37,124.31,8.0442]
[1725655142944,10.38329784,124.37,124.29,20.113]
[1725655142945,8.0413,124.36,124.3,8.0448]
[1725655143156,8.0421,124.35,124.29,28.1586]
[1725655143459,8.0412,124.36,124.3,53.0449]
[1725655143638,8.0404,124.38,124.32,8.0437]
[1725655143841,10.40008936,124.4,124.34,8.0423]
[1725655144033,2.36138936,124.4,124.31,6.0844]
[1725655144244,2.36138936,124.4,124.28,16.1418]
[1725655144245,24.46821955,124.4,124.28,16.1418]
[1725655144446,31.68496529,124.4,124.28,16.1418]
[1725655144650,31.68496529,124.4,124.29,45.0]
[1725655145041,8.0405,124.37,124.31,8.0443]
[1725655145263,8.0411,124.36,124.3,8.0449]
[1725655145439,20.0991,124.39,124.29,65.1133]
[1725655145640,22.01078205,124.38,124.29,65.1133]
[1725655145856,2.01078205,124.37,124.28,16.1418]
[1725655146045,20.0,124.38,124.28,16.1418]
[1725655146247,20.0,124.38,124.29,53.0452]
[1725655146680,8.0414,124.36,124.3,8.0448]
[1725655146858,8.0405,124.37,124.31,8.0442]
[1725655147048,20.0,124.36,124.31,8.0442]
[1725655148236,10.38377933,124.41,124.35,8.0412]
[1725655148435,149.4301351,124.44,124.34,20.1054]
[1725655148436,2.00988809,124.4,124.34,20.1054]
[1725655148664,8.0386,124.4,124.34,28.1476]
[1725655148865,9.5781351,124.44,124.34,20.1054]
[1725655149071,8.0375,124.42,124.36,8.041]
[1725655149240,8.038,124.41,124.35,8.0416]
[1725655149437,8.038,124.41,124.36,8.041]
[1725655149655,141.3781351,124.47,124.37,61.4551]
[1725655149859,2.00909677,124.46,124.37,16.4551]
[1725655150163,2.00961511,124.45,124.33,16.4551]
[1725655150368,142.88057252,124.47,124.34,45.0]
[1725655150581,2.0094689,124.46,124.36,20.1015]
[1725655150758,2.00974749,124.45,124.36,20.1015]
[1725655151075,2.00974749,124.45,124.34,45.0]
[1725655151076,8.0385,124.41,124.34,45.0]
[1725655151380,8.0386,124.4,124.34,53.0421]
[1725655151568,8.0386,124.4,124.34,8.0421]
[1725655152161,2.00996069,124.45,124.34,20.1048]
[1725655152364,22.00996069,124.45,124.34,20.1048]
[1725655152983,22.00996069,124.45,124.33,16.4551]
[1725655152984,131.8,124.44,124.33,16.4551]
[1725655153157,8.0412,124.36,124.33,16.4551]
[1725655153361,22.10804373,124.4,124.33,16.4551]
[1725655153688,8.0406,124.37,124.33,16.4551]
[1725655153857,20.0,124.39,124.33,16.4551]
[1725655154382,139.8373,124.42,124.36,8.0405]
[1725655154681,28.0379,124.41,124.35,8.0417]
[1725655154888,28.0379,124.41,124.36,45.0]
[1725655155264,28.0379,124.41,124.36,53.0411]
[1725655155476,20.0,124.41,124.36,53.0411]
[1725655155782,8.0367,124.43,124.37,8.0404]
[1725655155984,8.0367,124.43,124.37,8.0399]
[1725655155985,8.0372,124.43,124.37,8.0399]
[1725655156180,8.0367,124.43,124.37,8.0399]
[1725655156388,8.0381,124.41,124.36,20.1018]
[1725655157186,8.0372,124.43,124.36,20.1018]
[1725655157481,8.0372,124.43,124.37,53.0399]
[1725655158074,8.0372,124.43,124.37,45.0]
[1725655158475,20.0895,124.45,124.33,36.5627]
[1725655158788,22.00992567,124.44,124.33,16.4551]
[1725655159078,133.81013623,124.43,124.33,16.4551]
[1725655159285,8.0393,124.39,124.33,24.4977]
[1725655159470,151.8928,124.43,124.34,8.0418]
[1725655159779,8.0391,124.4,124.34,8.0418]
[1725655159961,8.038,124.41,124.35,8.0416]
[1725655160161,8.0389,124.4,124.34,28.1471]
[1725655160357,20.0,124.42,124.33,16.4551]
[1725655160578,8.0392,124.39,124.33,16.4551]
[1725655161285,8.038,124.41,124.35,8.0417]
[1725655161671,8.038,124.41,124.33,36.5619]
[1725655161672,8.038,124.41,124.36,8.041]
[1725655162083,28.0374,124.42,124.36,8.041]
[1725655162290,8.0374,124.42,124.37,45.0]
[1725655163088,8.0365,124.44,124.38,8.0398]
[1725655163671,8.0367,124.43,124.38,8.0398]
[1725655163881,20.0872,124.46,124.39,45.0]
[1725655164069,20.0,124.45,124.39,45.0]
[1725655164464,2.39966681,124.46,124.39,45.0]
[1725655164677,269.8781351,124.51,124.42,24.6379]
[1725655164874,131.8,124.52,124.43,53.0365]
[1725655164875,151.8779,124.52,124.43,53.0365]
[1725655165183,8.0333,124.49,124.43,53.0365]
[1725655165993,134.09940878,124.52,124.43,20.0904]
[1725655166169,8.0366,124.43,124.42,16.6009]
[1725655166582,8.0349,124.46,124.42,16.6009]
[1725655166888,22.09368604,124.48,124.42,16.6009]
[1725655166889,8.0356,124.45,124.42,16.6009]
[1725655167478,20.0846,124.48,124.42,16.6009]
[1725655167692,8.0361,124.44,124.42,16.6009]
[1725655168088,8.0353,124.45,124.42,16.6009]
[1725655168416,8.0363,124.44,124.42,16.6009]
[1725655168891,20.0,124.47,124.42,16.6009]
[1725655169279,8.0361,124.44,124.42,16.6009]
[1725655169483,8.0369,124.43,124.38,16.6009]
[1725655169975,8.036,124.44,124.38,24.6406]
[1725655170179,20.0,124.47,124.38,24.6406]
[1725655170377,20.0,124.47,124.41,8.0378]
[1725655170580,8.0349,124.46,124.39,20.097]
[1725655170780,28.0337,124.48,124.42,8.0372]
[1725655170986,8.0341,124.47,124.42,8.0372]
[1725655171177,22.37476903,124.51,124.42,8.0372]
[1725655171383,22.37476903,124.51,124.43,8.0365]
[1725655171384,8.0335,124.48,124.43,8.0365]
[1725655171775,8.0349,124.46,124.41,28.1313]
[1725655171990,8.0353,124.46,124.4,53.0383]
[1725655172200,2.29556903,124.51,124.41,8.0378]
[1725655172402,8.0334,124.48,124.42,8.0371]
[1725655172779,8.0334,124.48,124.43,45.0]
[1725655172985,2.00845529,124.51,124.43,45.0]
[1725655173496,8.0335,124.48,124.43,53.0361]
[1725655173693,8.0341,124.47,124.42,28.129]
[1725655173894,8.0341,124.47,124.42,20.0919]
[1725655174091,8.0337,124.48,124.43,45.0]
[1725655174288,2.00846916,124.51,124.42,28.1286]
[1725655174486,154.26029704,124.52,124.42,20.0919]
[1725655174698,8.0326,124.5,124.44,8.0357]
[1725655175083,8.0328,124.49,124.44,8.0357]
[1725655175482,8.0315,124.51,124.46,8.0347]
[1725655175686,8.0315,124.51,124.45,8.0351]
[1725655175882,20.0,124.5,124.45,8.0351]
[1725655176108,134.18259704,124.52,124.47,8.0338]
[1725655176109,131.8,124.52,124.47,8.0338]
[1725655176310,20.0727,124.55,124.47,8.0338]
[1725655176485,22.47226914,124.55,124.47,8.0338]
[1725655177305,22.47226914,124.55,124.45,15.3503]
[1725655177306,2.39956914,124.55,124.45,15.3503]
[1725655177484,8.0347,124.46,124.45,15.3503]
[1725655177795,20.0833,124.49,124.31,50.2212]
[1725655177796,8.0341,124.47,124.41,23.3877]
[1725655177995,8.0348,124.46,124.41,23.3877]
[1725655178209,8.0341,124.47,124.41,23.3877]
[1725655178500,8.0347,124.46,124.41,23.3877]
[1725655178713,20.0833,124.49,124.41,23.3877]
[1725655178714,22.0920797,124.49,124.41,15.3503]
[1725655178898,8.0364,124.44,124.41,15.3503]
[1725655179281,22.00897314,124.48,124.41,15.3503]
[1725655179282,8.0367,124.43,124.41,15.3503]
[1725655179601,8.036,124.44,124.41,15.3503]
[1725655179785,6.836,124.44,124.41,15.3503]
[1725655180522,8.0354,124.45,124.41,15.3503]
[1725655180880,24.3111146,124.48,124.41,15.3503]
[1725655181096,8.0372,124.42,124.37,16.3639]
[1725655181294,2.00947263,124.41,124.37,16.3639]
[1725655181499,153.80987841,124.45,124.37,16.3639]
[1725655181803,153.80987841,124.45,124.33,16.4365]
[1725655181804,8.0405,124.37,124.33,16.4365]
[1725655182214,8.0399,124.38,124.33,16.4365]
[1725655182386,133.81054951,124.42,124.33,16.4365]
[1725655182707,133.81054951,124.42,124.32,6.1007]
[1725655182708,171.8963,124.41,124.29,16.5939]
[1725655182882,133.81093887,124.4,124.29,16.5939]
[1725655183085,20.0,124.39,124.29,16.5939]
[1725655183302,8.0418,124.35,124.29,24.6394]
[1725655185108,8.0409,124.37,124.31,8.0443]
[1725655185404,151.8,124.39,124.3,20.1126]
[1725655185405,8.0414,124.36,124.3,28.1575]
[1725655185705,2.38302063,124.42,124.32,20.1081]
[1725655185884,2.38302063,124.42,124.29,16.5939]
[1725655185885,8.0419,124.35,124.29,16.5939]
[1725655186082,2.01005918,124.41,124.29,16.5939]
[1725655186083,8.0427,124.34,124.29,16.5939]
[1725655186316,8.0439,124.32,124.29,16.5939]
[1725655186689,8.0429,124.34,124.29,16.5939]
[1725655186896,20.0,124.33,124.29,16.5939]
[1725655187222,28.0432,124.33,124.29,16.5939]
[1725655188212,28.0431,124.33,124.29,16.5939]
[1725655188604,20.0,124.33,124.29,16.5939]
[1725655189100,8.0426,124.34,124.29,16.5939]
[1725655189711,2.3279857,124.38,124.29,16.5939]
[1725655189896,20.0,124.38,124.3,45.0]
[1725655190088,2.01062127,124.39,124.32,15.6738]
[1725655190287,171.9811,124.44,124.32,15.6738]
[1725655190288,2.37190109,124.42,124.35,20.1043]
[1725655190512,2.00964507,124.48,124.32,15.6738]
[1725655190811,40.1764,124.46,124.33,45.0]
[1725655191018,6.4089,124.43,124.32,15.6738]
[1725655191197,8.0405,124.37,124.32,15.6738]
[1725655191508,22.70437272,124.42,124.25,49.39051528]
[1725655191509,8.0413,124.36,124.3,8.045]
[1725655192204,8.0402,124.38,124.31,8.0442]
[1725655192508,28.0405,124.37,124.31,8.0442]
[1725655192807,28.0405,124.37,124.3,20.1123]
[1725655192808,20.0,124.37,124.32,53.0437]
[1725655193016,20.0,124.38,124.32,53.0437]
[1725655193313,28.0399,124.38,124.32,53.0437]
[1725655193889,8.0405,124.37,124.32,45.0]
[1725655194200,20.0,124.38,124.32,8.0436]
[1725655194201,28.0398,124.38,124.32,8.0436]
[1725655194715,20.0,124.38,124.33,20.1077]
[1725655194887,8.0386,124.4,124.33,20.1077]
[1725655195089,20.0,124.39,124.34,8.0418]
[1725655195319,20.0,124.39,124.35,53.0416]
[1725655195912,6.5839,124.47,124.36,22.4387]
[1725655196114,8.0364,124.44,124.38,8.0394]
[1725655196906,8.0357,124.45,124.39,53.0387]
[1725655197105,20.0,124.44,124.39,53.0387]
[1725655197506,8.0352,124.46,124.39,8.0386]
[1725655197729,20.0861,124.6,124.37,20.1]
[1725655197730,17.68875745,124.51,124.37,40.2019]
[1725655198016,8.0332,124.49,124.43,8.0366]
[1725655198312,8.0321,124.5,124.45,8.0351]
[1725655199017,8.0315,124.51,124.45,8.0351]
[1725655199192,131.8,124.53,124.44,8.0359]
[1725655199193,8.0322,124.5,124.44,8.0359]
[1725655199600,8.0322,124.5,124.43,20.0902]
[1725655199601,8.0314,124.52,124.43,20.0902]
[1725655199914,8.0311,124.52,124.45,20.0868]
[1725655200119,8.0315,124.51,124.46,8.0346]
[1725655200413,8.0315,124.51,124.44,45.0]
[1725655200414,2.00829085,124.54,124.44,53.0354]
[1725655200625,131.8,124.53,124.44,8.0354]
[1725655200801,131.8,124.53,124.45,45.0]
[1725655200997,139.8302,124.53,124.48,8.0334]
[1725655201296,139.8302,124.53,124.45,15.9222]
[1725655201297,131.8,124.53,124.45,15.9222]
[1725655201616,8.0315,124.51,124.45,15.9222]
[1725655201810,139.8307,124.53,124.47,8.0339]
[1725655202249,139.8307,124.53,124.46,45.0]
[1725655202250,131.8,124.53,124.46,45.0]
[1725655202402,131.8,124.53,124.47,20.0838]
[1725655202599,8.0295,124.55,124.48,45.0]
[1725655202800,6.264,124.6,124.51,8.0309]
[1725655203024,6.264,124.6,124.52,45.0]
[1725655203025,8.0257,124.6,124.52,45.0]
[1725655203200,8.0259,124.6,124.55,8.0288]
[1725655203406,172.62240192,124.65,124.55,20.0707]
[1725655203601,2.00623255,124.64,124.56,45.0]
[1725655203819,2.00623255,124.64,124.58,8.0267]
[1725655203820,10.02963255,124.64,124.58,8.0267]
[1725655204032,10.02963255,124.64,124.48,8.0328]
[1725655204033,8.0297,124.54,124.48,8.0328]
[1725655204204,2.00831826,124.53,124.41,16.2313]
[1725655204402,20.0784,124.52,124.41,16.2313]
[1725655204603,8.0327,124.5,124.41,8.0379]
[1725655204803,20.0,124.49,124.3,60.0]
[1725655205008,20.0,124.49,124.29,6.4408]
[1725655205009,20.0907,124.44,124.29,6.4408]
[1725655205225,8.0396,124.39,124.29,6.4408]
[1725655205599,20.0,124.38,124.28,16.2313]
[1725655205804,20.0,124.38,124.24,6.3796]
[1725655206039,50.0,124.36,124.21,16.6334]
[1725655206203,8.0468,124.28,124.21,16.6334]
[1725655206521,22.01220518,124.35,124.21,16.6334]
[1725655206522,20.0,124.35,124.21,16.6334]
[1725655206708,8.0452,124.3,124.21,16.6334]
[1725655206912,2.0113204,124.34,124.21,16.6334]
[1725655207117,2.66638888,124.33,124.21,16.6334]
[1725655207413,8.0502,124.22,124.21,16.6334]
[1725655207601,8.051,124.21,124.17,6.3796]
[1725655207807,8.05,124.23,124.17,6.3796]
[1725655208123,2.01239032,124.27,124.17,6.3796]
[1725655208304,2.0125715,124.26,124.14,15.9858]
[1725655208726,8.0529,124.18,124.14,15.9858]
[1725655209741,8.0494,124.24,124.14,15.9858]
[1725655209921,20.0,124.27,124.14,15.9858]
[1725655210422,8.0511,124.21,124.14,24.0406]
[1725655210933,2.01239778,124.26,124.15,8.0546]
[1725655211133,50.0,124.39,124.16,105.73689371]
[1725655211438,8.0459,124.29,124.18,50.0]
[1725655211614,20.1084,124.33,124.17,45.0]
[1725655211615,20.1084,124.33,124.19,65.0]
[1725655211811,8.0484,124.25,124.17,45.0]
[1725655212013,2.0119424,124.24,124.14,15.9858]
[1725655212337,2.01294097,124.3,124.16,8.0537]
[1725655212648,2.01294097,124.3,124.14,15.9858]
[1725655212649,2.01234261,124.29,124.15,8.0547]
[1725655212815,47.01234261,124.29,124.14,15.9858]
[1725655213021,51.4270964,124.29,124.14,15.9858]
[1725655213344,8.0522,124.19,124.14,15.9858]
[1725655213912,60.3604,124.26,124.14,15.9858]
[1725655214111,20.0,124.25,124.16,28.1879]
[1725655214336,20.0,124.25,124.14,24.0406]
[1725655214337,8.0518,124.2,124.14,24.0406]
[1725655214525,8.0522,124.19,124.14,15.9858]
[1725655214725,8.0515,124.2,124.14,24.0411]
[1725655214940,8.0523,124.19,124.14,15.9858]
[1725655215146,20.1224,124.24,124.15,8.0546]
[1725655215316,8.0502,124.22,124.15,20.1367]
[1725655215515,8.0494,124.24,124.15,20.1367]
[1725655216021,20.1108,124.32,124.16,35.73689371]
[1725655216223,16.4166,124.4,124.16,35.73689371]
[1725655216224,8.0444,124.31,124.23,20.1224]
[1725655216522,20.1041,124.36,124.24,45.0]
[1725655216715,20.1041,124.36,124.26,20.1188]
[1725655216915,20.1041,124.36,124.27,45.0]
[1725655217218,17.09275682,124.39,124.27,53.0463]
[1725655217219,8.0433,124.33,124.27,53.0463]
[1725655217419,11.05151536,124.39,124.27,45.0]
[1725655217624,8.043,124.34,124.28,8.0459]
[1725655217827,20.098,124.4,124.28,8.0459]
[1725655217828,20.098,124.4,124.31,8.044]
[1725655218136,20.098,124.4,124.32,45.0]
[1725655218321,8.0405,124.37,124.32,45.0]
[1725655219037,20.1018,124.37,124.27,15.5093]
[1725655219251,20.0,124.36,124.28,45.0]
[1725655219538,28.0415,124.36,124.29,8.0452]
[1725655219842,8.0424,124.34,124.3,45.0]
[1725655220738,8.0424,124.34,124.29,45.0]
[1725655221613,20.0,124.36,124.29,45.0]
[1725655221814,8.0398,124.38,124.32,8.0436]
[1725655222120,8.0392,124.39,124.33,53.043]
[1725655222431,210.81157309,124.45,124.33,65.107]
[1725655222432,8.0386,124.4,124.33,65.107]
[1725655222634,9.04075682,124.45,124.33,65.107]
[1725655222836,280.3835,124.48,124.35,20.103]
[1725655223019,8.0372,124.43,124.36,45.0]
[1725655223215,8.0372,124.43,124.37,8.0399]
[1725655223418,8.0373,124.42,124.38,45.0]
[1725655223725,131.8,124.5,124.38,45.0]
[1725655223937,8.0338,124.48,124.41,8.0378]
[1725655224141,6.2751,124.57,124.45,8.0353]
[1725655224142,8.0326,124.5,124.45,8.0353]
[1725655224349,8.0307,124.53,124.46,8.0347]
[1725655224522,8.0308,124.52,124.47,45.0]
[1725655224734,8.0301,124.54,124.47,53.034]
[1725655224931,8.0308,124.52,124.47,53.034]
[1725655225262,22.06855161,124.62,124.47,51.2531]
[1725655225545,20.0609,124.62,124.52,20.0766]
[1725655225720,9.04075682,124.64,124.53,45.0]
[1725655225921,8.48640252,124.62,124.53,45.0]
[1725655226141,8.0271,124.58,124.53,45.0]
[1725655226332,8.0264,124.59,124.53,45.0]
[1725655226533,8.48640252,124.62,124.53,45.0]
[1725655226752,10.49310147,124.62,124.53,45.0]
[1725655227048,8.48640252,124.62,124.53,53.0301]